bitfinex/quotes_SOLUSD_20241021
["timestamp","ask_amount","ask_price","bid_price","bid_amount"]
[1729470251113,0.2,169.65,169.6,2.84979895]
[1729470251505,0.2,169.65,169.58,2.96957033]
[1729470251714,0.2,169.65,169.59,2.34979895]
[1729470252210,0.2,169.65,169.58,2.96957033]
[1729470252917,0.2,169.65,169.57,2.96957033]
[1729470253823,0.1,169.65,169.57,2.96957033]
[1729470254123,0.2,169.65,169.57,2.96957033]
[1729470254630,0.1,169.65,169.57,2.96957033]
[1729470254836,0.2,169.65,169.57,2.96957033]
[1729470255132,0.2,169.64,169.56,1.02318276]
[1729470255324,0.2,169.64,169.56,3.99351251]
[1729470255630,0.2,169.64,169.57,2.97032975]
[1729470255822,0.2,169.64,169.56,3.99351251]
[1729470256122,0.2,169.64,169.57,1.78065146]
[1729470256329,0.2,169.64,169.58,1.78065146]
[1729470256507,0.2,169.64,169.59,1.78065146]
[1729470256707,0.2,169.64,169.6,1.78065146]
[1729470256909,0.2,169.64,169.61,1.78065146]
[1729470257213,0.2,169.64,169.62,1.78065146]
[1729470257408,0.2,169.64,169.63,1.78065146]
[1729470257938,0.2,169.64,169.63,1.77964351]
[1729470258626,0.1,169.62,169.56,1.02318276]
[1729470258931,0.1,169.62,169.57,1.77908959]
[1729470259132,0.2,169.61,169.57,1.77908959]
[1729470260133,0.2,169.58,169.52,1.02319334]
[1729470260449,0.2,169.58,169.53,1.77942097]
[1729470260607,0.1,169.58,169.54,1.77942097]
[1729470260813,0.2,169.58,169.55,1.77942097]
[1729470261013,0.1,169.58,169.56,1.77942097]
[1729470261307,0.1,169.58,169.5,0.6319043]
[1729470261308,0.1,169.58,169.57,1.77942097]
[1729470261934,0.1,169.58,169.51,21.77942097]
[1729470262132,0.1,169.58,169.52,4.62417297]
[1729470262336,0.1,169.58,169.53,1.77942097]
[1729470262541,0.2,169.58,169.53,1.77942097]
[1729470262714,22.97599572,169.6,169.53,1.77942097]
[1729470263038,0.84119572,169.6,169.54,1.77942097]
[1729470263227,0.84119572,169.6,169.55,1.77942097]
[1729470265521,0.84119572,169.6,169.56,1.77942097]
[1729470265720,0.84119572,169.6,169.51,20.0]
[1729470265916,0.84119572,169.6,169.52,1.77423127]
[1729470266439,0.94119572,169.6,169.53,1.77424712]
[1729470266632,0.1,169.59,169.54,1.77424712]
[1729470266835,0.1,169.59,169.55,1.77424712]
[1729470267031,0.1,169.59,169.5,0.6319043]
[1729470267232,0.1,169.59,169.5,2.40545403]
[1729470267444,0.1,169.58,169.51,1.77354973]
[1729470267738,0.2,169.59,169.52,1.77354973]
[1729470267941,0.2,169.59,169.53,1.77354973]
[1729470268652,0.1,169.67,169.53,21.77354973]
[1729470268828,0.1,169.66,169.55,20.0]
[1729470269019,0.2,169.66,169.57,20.0]
[1729470269219,0.2,169.66,169.58,1.77354973]
[1729470269438,0.1,169.62,169.58,1.77354973]
[1729470269741,0.1,169.63,169.56,20.0]
[1729470269948,0.1,169.62,169.57,20.0]
[1729470270441,0.2,169.59,169.52,22.358699]
[1729470271058,0.1,169.58,169.52,22.358699]
[1729470272219,0.1,169.59,169.52,22.358699]
[1729470272420,0.2,169.6,169.52,22.358699]
[1729470272618,0.1,169.62,169.53,6.35701196]
[1729470272924,0.1,169.63,169.54,21.76970506]
[1729470273121,0.1,169.63,169.55,6.35701196]
[1729470273316,22.8131,169.64,169.56,20.0]
[1729470273527,22.9131,169.64,169.56,26.35701196]
[1729470273730,22.9131,169.64,169.58,20.0]
[1729470273924,22.8131,169.64,169.58,20.0]
[1729470274124,23.0131,169.64,169.58,20.0]
[1729470274524,0.1,169.63,169.55,20.0]
[1729470274744,22.9131,169.64,169.52,22.358699]
[1729470274745,0.1,169.62,169.52,22.358699]
[1729470274927,0.2,169.62,169.52,22.358699]
[1729470275241,0.1,169.61,169.54,20.0]
[1729470275431,0.1,169.6,169.54,20.0]
[1729470275740,0.1,169.6,169.52,2.358699]
[1729470275943,0.2,169.6,169.52,2.358699]
[1729470276143,0.1,169.58,169.52,2.358699]
[1729470276731,0.1,169.57,169.52,2.358699]
[1729470277337,0.1,169.57,169.51,20.0]
[1729470278049,0.1,169.57,169.5,20.6319043]
[1729470278546,0.1,169.57,169.5,0.6319043]
[1729470280137,0.1,169.58,169.5,0.6319043]
[1729470280348,0.1,169.57,169.5,0.6319043]
[1729470281235,0.1,169.59,169.51,20.0]
[1729470281551,0.96806919,169.63,169.51,20.0]
[1729470281727,0.86806919,169.63,169.53,21.7459]
[1729470281935,0.86806919,169.63,169.54,13.08014423]
[1729470282127,0.86806919,169.63,169.55,20.0]
[1729470282345,0.86806919,169.63,169.55,26.35701196]
[1729470282828,0.86806919,169.63,169.57,20.0]
[1729470283031,22.21859572,169.68,169.57,26.35701196]
[1729470283032,22.11859572,169.68,169.57,26.35701196]
[1729470283345,0.2,169.67,169.59,20.0]
[1729470284130,0.1,169.66,169.54,20.0]
[1729470284354,0.1,169.65,169.57,20.0]
[1729470284526,0.1,169.63,169.57,20.0]
[1729470284727,0.2,169.63,169.57,20.0]
[1729470285033,23.776884,169.67,169.53,1.7459]
[1729470285034,0.2,169.67,169.53,21.7459]
[1729470285231,0.1,169.66,169.54,6.35701196]
[1729470285450,0.1,169.66,169.55,20.0]
[1729470285750,0.1,169.66,169.57,20.0]
[1729470285951,22.21859572,169.68,169.57,20.0]
[1729470286258,22.21859572,169.68,169.59,20.0]
[1729470286633,22.11859572,169.68,169.59,20.0]
[1729470286829,22.11859572,169.68,169.6,23.776884]
[1729470287028,22.8965,169.72,169.62,23.776884]
[1729470287234,22.8965,169.72,169.63,20.0]
[1729470287631,22.9965,169.72,169.63,20.0]
[1729470288231,0.2,169.69,169.56,20.0]
[1729470289034,0.1,169.68,169.56,20.0]
[1729470289357,0.1,169.67,169.56,20.0]
[1729470289840,0.1,169.7,169.6,20.0]
[1729470290748,0.2,169.7,169.6,20.0]
[1729470290949,0.1,169.67,169.58,20.0]
[1729470291157,0.1,169.65,169.54,7.4791235]
[1729470291340,0.1,169.65,169.53,7.48939537]
[1729470291341,0.1,169.64,169.53,1.7459]
[1729470291652,6.1885,169.63,169.53,1.7459]
[1729470292031,6.1885,169.63,169.51,20.0]
[1729470292241,6.1885,169.63,169.5,14.15647394]
[1729470292242,0.1,169.62,169.5,6.98891626]
[1729470292445,0.1,169.62,169.51,7.16755768]
[1729470293067,6.1885,169.63,169.51,7.16755768]
[1729470293358,6.1885,169.63,169.53,20.0]
[1729470293541,6.0885,169.63,169.53,20.0]
[1729470294158,6.1885,169.63,169.53,20.0]
[1729470294575,6.0885,169.63,169.53,33.52456964]
[1729470296145,0.86773892,169.64,169.55,20.0]
[1729470296359,0.86773892,169.64,169.57,20.0]
[1729470296547,0.86773892,169.64,169.59,20.0]
[1729470297262,0.86773892,169.64,169.57,20.0]
[1729470297433,6.0885,169.67,169.59,20.0]
[1729470297636,6.0885,169.67,169.59,27.16755768]
[1729470298954,6.0885,169.67,169.61,20.0]
[1729470299163,6.0885,169.67,169.59,27.16755768]
[1729470299537,6.0885,169.67,169.59,20.0]
[1729470300262,0.1,169.66,169.55,20.0]
[1729470300462,0.1,169.65,169.56,6.35701196]
[1729470300639,0.1,169.64,169.56,7.16755768]
[1729470300844,0.1,169.65,169.53,14.1429709]
[1729470301141,0.1,169.65,169.54,7.16755768]
[1729470301542,0.1,169.64,169.54,7.16755768]
[1729470301741,0.1,169.65,169.55,20.0]
[1729470301941,23.876884,169.66,169.54,7.16755768]
[1729470301942,0.1,169.66,169.56,7.16755768]
[1729470302146,6.2885,169.67,169.57,20.0]
[1729470302365,6.0885,169.67,169.57,27.16755768]
[1729470302663,6.0885,169.67,169.58,7.16755768]
[1729470302964,6.0885,169.67,169.59,20.0]
[1729470303834,17.45415004,169.68,169.61,23.776884]
[1729470304035,0.88405004,169.68,169.62,20.0]
[1729470304241,0.98405004,169.68,169.62,20.0]
[1729470304941,0.98405004,169.68,169.58,1.7459]
[1729470305240,0.88405004,169.68,169.6,20.0]
[1729470305458,0.88405004,169.68,169.61,7.16755768]
[1729470305841,0.88405004,169.68,169.62,20.0]
[1729470306043,6.4751,169.71,169.62,27.16755768]
[1729470306267,6.4751,169.71,169.5,5.73468678]
[1729470306268,0.1,169.65,169.53,2.7687821]
[1729470307858,0.1,169.65,169.55,23.776884]
[1729470308043,0.1,169.65,169.56,20.0]
[1729470308254,0.1,169.66,169.56,20.0]
[1729470308439,0.1,169.63,169.54,7.4791235]
[1729470308641,0.1,169.63,169.54,13.83613546]
[1729470309765,0.1,169.63,169.55,20.0]
[1729470310344,15.3318,169.64,169.55,20.0]
[1729470310865,15.1318,169.64,169.57,20.0]
[1729470311068,15.2318,169.64,169.57,20.0]
[1729470311443,15.2318,169.64,169.56,20.0]
[1729470311748,6.7368,169.63,169.54,7.16755768]
[1729470312067,6.6368,169.63,169.54,13.52456964]
[1729470312256,6.7368,169.63,169.55,6.35701196]
[1729470312563,6.6368,169.63,169.55,21.00369314]
[1729470312765,6.6368,169.63,169.56,20.0]
[1729470313144,6.7368,169.63,169.56,20.0]
[1729470313465,6.7368,169.63,169.53,21.0228821]
[1729470313846,6.7368,169.63,169.53,27.37989406]
[1729470314040,6.7368,169.63,169.54,13.52456964]
[1729470314247,6.7368,169.63,169.55,20.0]
[1729470314450,6.7368,169.63,169.55,26.35701196]
[1729470314655,6.7368,169.63,169.54,20.0]
[1729470314871,6.7368,169.63,169.54,26.35701196]
[1729470315242,6.7368,169.63,169.56,20.0]
[1729470316144,6.7368,169.63,169.53,21.0228821]
[1729470316442,0.1,169.6,169.53,1.0228821]
[1729470316663,0.1,169.59,169.53,1.0228821]
[1729470317061,0.2,169.59,169.53,1.0228821]
[1729470317368,0.1,169.56,169.53,1.0228821]
[1729470317572,0.2,169.58,169.53,1.0228821]
[1729470317874,0.1,169.57,169.53,1.0228821]
[1729470318247,6.2566,169.55,169.5,0.6319043]
[1729470318565,6.3566,169.55,169.5,0.6319043]
[1729470318775,15.9605,169.56,169.5,0.6319043]
[1729470319065,15.9605,169.56,169.5,21.63559744]
[1729470319267,15.9605,169.56,169.5,6.98891626]
[1729470319967,15.9605,169.56,169.51,20.0]
[1729470322462,15.9605,169.56,169.51,6.35701196]
[1729470322876,15.9605,169.56,169.52,20.0]
[1729470325974,7.47498778,169.59,169.52,20.0]
[1729470326178,7.47498778,169.59,169.53,6.35701196]
[1729470326374,6.1328,169.63,169.54,20.0]
[1729470326567,6.1328,169.63,169.56,43.776884]
[1729470326773,6.1328,169.63,169.57,6.35701196]
[1729470327284,16.1377,169.64,169.58,20.0]
[1729470327466,16.1377,169.64,169.6,20.0]
[1729470332886,15.4455,169.7,169.6,20.0]
[1729470333086,15.3455,169.7,169.62,20.0]
[1729470333262,15.3455,169.7,169.62,26.35701196]
[1729470333463,15.3455,169.7,169.64,20.0]
[1729470334063,0.1,169.74,169.66,20.0]
[1729470334064,15.5732,169.74,169.66,20.0]
[1729470334257,6.2889,169.77,169.7,20.0]
[1729470334478,15.5732,169.79,169.72,20.0]
[1729470337780,15.5732,169.79,169.73,1.76883901]
[1729470338300,15.5732,169.79,169.74,1.76883901]
[1729470338463,15.5732,169.79,169.75,1.76883901]
[1729470338664,15.5732,169.79,169.76,1.76883901]
[1729470338983,15.5732,169.79,169.77,1.76883901]
[1729470339166,15.5732,169.79,169.78,1.76883901]
[1729470339496,15.5732,169.79,169.72,20.0]
[1729470339497,15.5732,169.79,169.74,1.76713327]
[1729470339784,0.1,169.77,169.75,1.76713327]
[1729470339984,0.1,169.77,169.76,1.76713327]
[1729470340163,0.1,169.77,169.64,2.82780842]
[1729470340360,0.1,169.77,169.65,10.95199288]
[1729470340687,0.2,169.77,169.66,4.59498092]
[1729470340889,0.2,169.77,169.67,1.7671725]
[1729470340890,0.1,169.77,169.67,1.7671725]
[1729470341084,12.78424525,169.77,169.68,1.7671725]
[1729470341393,0.2,169.76,169.69,1.7671725]
[1729470341567,0.2,169.76,169.7,1.7671725]
[1729470341764,0.1,169.78,169.71,1.7671725]
[1729470341977,0.1,169.77,169.72,1.7671725]
[1729470342186,0.1,169.77,169.73,1.7671725]
[1729470342369,0.1,169.77,169.74,1.7671725]
[1729470342688,0.1,169.78,169.75,1.7671725]
[1729470342993,15.5732,169.79,169.76,1.7671725]
[1729470343288,15.5732,169.79,169.71,2.82780842]
[1729470343289,15.5732,169.79,169.77,1.7671725]
[1729470343465,15.5732,169.79,169.71,2.82780842]
[1729470343667,15.5732,169.79,169.72,20.0]
[1729470343867,15.5732,169.79,169.73,1.76612181]
[1729470344281,15.6732,169.79,169.73,1.76612181]
[1729470344873,15.6732,169.79,169.74,1.76612181]
[1729470345070,15.6732,169.79,169.75,1.76612181]
[1729470345374,15.6732,169.79,169.72,2.82780842]
[1729470345375,0.1,169.78,169.76,1.76612181]
[1729470345581,0.1,169.78,169.77,1.76612181]
[1729470345988,0.1,169.78,169.72,1.76612181]
[1729470346792,0.1,169.78,169.71,20.0]
[1729470346988,0.1,169.78,169.72,4.58529378]
[1729470347192,0.1,169.78,169.73,1.76342286]
[1729470347493,0.1,169.78,169.74,1.76342286]
[1729470347694,0.1,169.78,169.75,1.76342286]
[1729470347695,0.2,169.78,169.75,1.76342286]
[1729470347883,0.2,169.78,169.72,2.82187092]
[1729470348074,0.2,169.78,169.73,1.76278867]
[1729470348272,0.2,169.78,169.74,1.76278867]
[1729470348488,0.2,169.78,169.75,1.76278867]
[1729470348694,0.2,169.78,169.71,2.82187092]
[1729470348872,0.2,169.77,169.72,1.76242291]
[1729470349190,0.2,169.77,169.67,6.35701196]
[1729470349191,0.1,169.77,169.73,1.76242291]
[1729470349392,0.1,169.77,169.74,1.76242291]
[1729470349569,0.1,169.77,169.68,18.39507092]
[1729470349774,0.1,169.76,169.69,1.7618148]
[1729470350471,0.1,169.76,169.7,1.76119488]
[1729470350679,0.2,169.76,169.71,1.76119488]
[1729470350876,0.2,169.76,169.72,1.76119488]
[1729470351083,0.1,169.76,169.73,1.76119488]
[1729470351288,0.1,169.76,169.68,22.81830573]
[1729470351596,0.1,169.76,169.69,4.57966818]
[1729470351788,0.1,169.76,169.7,1.76136245]
[1729470351992,0.2,169.76,169.71,1.76136245]
[1729470352195,0.2,169.76,169.72,1.76136245]
[1729470352379,0.2,169.76,169.73,1.76136245]
[1729470352588,0.1,169.76,169.69,2.81830573]
[1729470352780,0.1,169.76,169.7,1.76128903]
[1729470352975,0.1,169.76,169.71,1.76128903]
[1729470353294,0.2,169.76,169.72,1.76128903]
[1729470353471,0.1,169.74,169.73,1.76128903]
[1729470353672,6.5051,169.74,169.69,2.81830573]
[1729470353891,0.1,169.73,169.69,4.5804849]
[1729470354394,0.1,169.72,169.7,1.7623807]
[1729470354618,0.1,169.73,169.64,21.93021196]
[1729470354619,0.1,169.71,169.64,21.93021196]
[1729470354899,0.1,169.71,169.65,4.58233145]
[1729470355079,0.1,169.71,169.66,1.76212833]
[1729470355278,0.1,169.72,169.66,1.76212833]
[1729470355486,0.1,169.71,169.66,1.76212833]
[1729470355682,0.1,169.72,169.66,1.76212833]
[1729470356180,0.1,169.71,169.66,21.76212833]
[1729470356400,0.1,169.71,169.67,1.76212833]
[1729470356778,0.1,169.72,169.67,1.76212833]
[1729470356971,0.1,169.71,169.67,1.76212833]
[1729470357179,0.1,169.72,169.67,1.76212833]
[1729470357499,0.1,169.71,169.67,1.76212833]
[1729470357996,0.1,169.71,169.68,1.76289749]
[1729470358187,0.1,169.71,169.69,1.76289749]
[1729470358383,0.1,169.72,169.69,1.76289749]
[1729470358592,16.2571,169.7,169.69,1.76289749]
[1729470358788,17.22462619,169.7,169.69,1.76289749]
[1729470358984,17.22462619,169.7,169.66,1.76289749]
[1729470359189,0.1,169.69,169.67,1.76289749]
[1729470359491,0.1,169.68,169.62,6.35701196]
[1729470359700,0.1,169.68,169.63,1.76361702]
[1729470360906,0.1,169.69,169.63,21.76361702]
[1729470361203,0.1,169.68,169.64,1.76361702]
[1729470361394,0.2,169.68,169.64,1.76361702]
[1729470362195,0.1,169.68,169.64,1.76361702]
[1729470362390,0.1,169.66,169.64,1.76361702]
[1729470362603,0.1,169.65,169.64,1.76361702]
[1729470362778,0.1,169.65,169.61,4.58723072]
[1729470363095,0.1,169.63,169.62,1.76456664]
[1729470363283,0.2,169.63,169.59,1.02493054]
[1729470363484,0.1,169.61,169.59,1.02493054]
[1729470363691,0.1,169.63,169.57,6.35701196]
[1729470363896,0.1,169.63,169.58,1.02530846]
[1729470364106,16.7043,169.64,169.58,21.02530846]
[1729470364304,16.6043,169.64,169.59,2.8236137]
[1729470364812,0.1,169.63,169.59,2.8236137]
[1729470365497,0.2,169.63,169.59,2.8236137]
[1729470365688,0.1,169.63,169.59,2.8236137]
[1729470365884,0.1,169.66,169.59,2.8236137]
[1729470366110,7.05419631,169.67,169.61,20.0]
[1729470366409,7.05419631,169.67,169.63,20.0]
[1729470366581,7.15419631,169.67,169.63,29.18062566]
[1729470366906,7.15419631,169.67,169.63,26.35701196]
[1729470368106,7.05419631,169.67,169.63,26.35701196]
[1729470368302,7.15419631,169.67,169.63,26.35701196]
[1729470368691,0.86769631,169.67,169.63,26.35701196]
[1729470368897,6.0215,169.71,169.64,22.82069343]
[1729470369094,0.2,169.73,169.64,29.98825111]
[1729470369097,0.1,169.73,169.64,29.98825111]
[1729470369292,0.2,169.74,169.65,2.82069343]
[1729470369806,0.1,169.71,169.66,20.0]
[1729470370105,0.1,169.71,169.66,22.82069343]
[1729470371209,0.1,169.73,169.66,22.82069343]
[1729470371510,0.1,169.71,169.66,22.82069343]
[1729470371709,0.2,169.71,169.66,22.82069343]
[1729470371908,0.1,169.7,169.59,7.16755768]
[1729470372206,0.1,169.73,169.61,20.0]
[1729470372381,0.1,169.73,169.62,13.52456964]
[1729470372585,0.1,169.73,169.63,20.0]
[1729470372908,0.1,169.73,169.65,20.0]
[1729470373208,6.90526624,169.75,169.66,13.52456964]
[1729470373388,0.2,169.8,169.69,20.0]
[1729470373389,15.2045,169.8,169.69,20.0]
[1729470373705,15.2045,169.8,169.71,20.0]
[1729470373706,0.1,169.79,169.71,20.0]
[1729470373889,0.1,169.79,169.71,29.98435205]
[1729470374087,0.1,169.79,169.72,2.81679437]
[1729470375010,0.1,169.79,169.72,4.5751661]
[1729470375011,0.1,169.76,169.72,4.5751661]
[1729470375217,0.1,169.76,169.73,1.75840251]
[1729470375392,0.2,169.75,169.74,1.75840251]
[1729470375585,0.1,169.72,169.71,4.57219888]
[1729470375811,0.2,169.72,169.71,1.75845031]
[1729470376497,0.2,169.72,169.68,1.75845031]
[1729470376694,0.2,169.72,169.69,1.75845031]
[1729470377013,0.1,169.71,169.7,1.75845031]
[1729470377209,0.2,169.71,169.7,1.75845031]
[1729470377694,23.976884,169.71,169.7,1.75845031]
[1729470377891,23.976884,169.71,169.58,10.66230989]
[1729470377892,0.1,169.66,169.63,2.93210826]
[1729470378110,0.2,169.66,169.64,1.76131338]
[1729470378410,0.2,169.66,169.65,1.76131338]
[1729470378611,0.2,169.66,169.65,1.76206723]
[1729470378817,0.1,169.66,169.65,1.76206723]
[1729470379324,0.2,169.66,169.65,1.76206723]
[1729470379628,0.1,169.66,169.65,1.76206723]
[1729470379796,0.2,169.66,169.65,1.76206723]
[1729470380402,0.2,169.66,169.65,24.58176985]
[1729470380606,0.2,169.66,169.65,21.76206723]
[1729470381014,0.2,169.66,169.65,1.76206723]
[1729470381224,0.1,169.66,169.65,1.76206723]
[1729470381395,0.2,169.66,169.65,1.76206723]
[1729470382514,0.1,169.66,169.65,1.76206723]
[1729470382818,0.2,169.66,169.65,1.76206723]
[1729470383520,0.1,169.66,169.65,1.76206723]
[1729470383830,0.2,169.66,169.65,1.76206723]
[1729470384327,0.2,169.66,169.65,4.58176985]
[1729470384531,0.2,169.66,169.65,1.76206723]
[1729470385725,0.2,169.66,169.65,1.76817195]
[1729470386824,0.2,169.66,169.65,4.59764358]
[1729470388222,0.1,169.69,169.65,24.59764358]
[1729470388425,0.98411201,169.71,169.67,22.94839883]
[1729470388426,0.2,169.7,169.67,22.94839883]
[1729470388617,0.1,169.69,169.68,24.59764358]
[1729470389214,0.1,169.69,169.64,6.35701196]
[1729470389215,0.1,169.69,169.65,20.0]
[1729470389417,0.1,169.69,169.68,20.0]
[1729470389636,0.1,169.69,169.68,24.59667433]
[1729470389919,0.2,169.69,169.68,4.59667433]
[1729470390117,0.1,169.69,169.68,4.59667433]
[1729470390324,0.2,169.69,169.68,4.59667433]
[1729470390508,0.2,169.7,169.68,4.59667433]
[1729470390710,0.88411201,169.71,169.69,4.59667433]
[1729470390910,0.98411201,169.71,169.7,4.59667433]
[1729470391110,1.08411201,169.71,169.7,4.59667433]
[1729470391502,0.98411201,169.71,169.7,4.59667433]
[1729470391708,1.08411201,169.71,169.7,4.59667433]
[1729470392016,0.98411201,169.71,169.7,4.59667433]
[1729470392426,0.88411201,169.71,169.7,4.59667433]
[1729470392728,6.0504,169.73,169.65,20.0]
[1729470393027,6.1504,169.73,169.7,1.76864715]
[1729470393228,0.2,169.72,169.71,4.5988792]
[1729470394525,23.976884,169.72,169.71,4.5988792]
[1729470395920,23.976884,169.72,169.71,1.76864715]
[1729470396232,23.976884,169.72,169.71,4.5988792]
[1729470396435,23.976884,169.72,169.71,1.76864715]
[1729470397027,23.976884,169.72,169.71,4.5988792]
[1729470397211,23.976884,169.72,169.71,1.76864715]
[1729470397716,23.976884,169.72,169.71,4.5988792]
[1729470397916,23.976884,169.72,169.71,1.76864715]
[1729470399938,23.976884,169.72,169.71,1.76014702]
[1729470404336,29.868884,169.72,169.71,1.76014702]
[1729470404545,0.1,169.65,169.64,2.93503283]
[1729470404836,30.8477501,169.65,169.64,2.82126202]
[1729470405719,30.9477501,169.65,169.64,2.82126202]
[1729470408938,45.9681501,169.65,169.64,2.82126202]
[1729470409426,23.776884,169.64,169.61,2.82126202]
[1729470409642,23.776884,169.64,169.62,2.82126202]
[1729470409827,23.776884,169.64,169.63,2.82126202]
[1729470410022,23.776884,169.64,169.59,2.82126202]
[1729470410322,0.1,169.61,169.6,2.82126202]
[1729470410519,0.1,169.59,169.58,2.94372884]
[1729470410829,0.2,169.59,169.58,5.76873852]
[1729470411025,0.2,169.59,169.5,0.6319043]
[1729470411026,6.0969,169.58,169.57,2.94372884]
[1729470411336,0.1,169.51,169.5,3.57563314]
[1729470411641,0.1,169.51,169.5,0.6319043]
[1729470412028,0.2,169.51,169.5,0.6319043]
[1729470416628,46.164784,169.51,169.5,0.6319043]
[1729470416942,47.04997533,169.51,169.5,0.6319043]
[1729470417155,53.04927533,169.51,169.5,0.6319043]
[1729470417445,47.04997533,169.51,169.5,0.6319043]
[1729470420254,47.04997533,169.51,169.5,2.38461325]
[1729470420457,23.27309133,169.51,169.5,2.38461325]
[1729470420753,23.27309133,169.51,169.5,2.38463347]
[1729470420959,23.27309133,169.51,169.5,0.6319043]
[1729470421158,23.27309133,169.51,169.5,2.38463347]
[1729470421335,23.27309133,169.51,169.5,0.6319043]
[1729470421747,47.04997533,169.51,169.5,0.6319043]
[1729470422333,47.04997533,169.51,169.5,2.38463347]
[1729470422540,47.04997533,169.51,169.5,0.6319043]
[1729470422742,53.04927533,169.51,169.5,0.6319043]
[1729470422946,0.2,169.47,169.46,1.75272917]
[1729470423162,0.1,169.43,169.4,1.02631496]
[1729470423361,0.1,169.44,169.41,1.75187695]
[1729470423564,0.1,169.44,169.4,1.02631496]
[1729470423565,0.1,169.44,169.42,1.75187695]
[1729470423769,0.1,169.48,169.43,1.75187695]
[1729470423935,0.1,169.49,169.43,1.75187695]
[1729470424135,0.1,169.5,169.45,20.0]
[1729470424356,0.1,169.5,169.46,1.75187695]
[1729470424677,0.1,169.5,169.47,1.75187695]
[1729470424863,0.1,169.5,169.48,1.75187695]
[1729470425052,0.1,169.5,169.49,1.75187695]
[1729470425254,0.1,169.5,169.47,1.75187695]
[1729470425566,0.1,169.5,169.45,22.80376024]
[1729470425567,0.1,169.5,169.48,1.75187695]
[1729470425754,0.1,169.5,169.49,1.75187695]
[1729470426474,0.1,169.5,169.47,1.75187695]
[1729470426640,0.1,169.48,169.46,2.79882244]
[1729470426840,0.1,169.48,169.47,1.74828373]
[1729470427045,0.1,169.49,169.47,1.74828373]
[1729470427240,0.1,169.49,169.48,1.74828373]
[1729470427457,0.1,169.51,169.48,1.74828373]
[1729470427649,0.1,169.53,169.49,1.74828373]
[1729470427959,0.2,169.57,169.5,1.74828373]
[1729470428175,0.1,169.56,169.51,1.74828373]
[1729470428344,0.1,169.56,169.52,21.74828373]
[1729470428537,0.1,169.55,169.53,24.54710617]
[1729470428740,0.1,169.55,169.46,7.16755768]
[1729470428741,0.2,169.55,169.54,1.74828373]
[1729470429044,0.2,169.55,169.47,2.91647619]
[1729470429045,0.1,169.54,169.5,2.79794522]
[1729470429248,0.1,169.56,169.51,1.74844964]
[1729470429460,0.2,169.56,169.52,1.74844964]
[1729470429696,0.2,169.56,169.48,9.27348815]
[1729470429697,0.1,169.55,169.53,1.74844964]
[1729470429967,0.1,169.55,169.54,1.74844964]
[1729470430141,0.1,169.55,169.49,20.0]
[1729470430458,0.1,169.55,169.5,21.74835195]
[1729470430660,0.1,169.54,169.51,24.54652281]
[1729470430880,0.2,169.53,169.52,4.54652281]
[1729470431163,0.2,169.53,169.47,2.91563275]
[1729470431339,0.1,169.53,169.48,1.74843161]
[1729470431543,0.1,169.54,169.49,1.74843161]
[1729470431544,0.1,169.52,169.49,1.74843161]
[1729470431866,0.1,169.52,169.5,1.74843161]
[1729470432064,0.1,169.52,169.51,1.74843161]
[1729470432443,0.2,169.53,169.48,20.0]
[1729470432770,0.1,169.56,169.49,1.74843161]
[1729470432951,0.1,169.55,169.5,21.74843161]
[1729470433264,0.1,169.55,169.51,1.74843161]
[1729470433476,0.1,169.55,169.52,1.74843161]
[1729470433652,0.1,169.55,169.53,1.74843161]